bitfinex/quotes_SOLUSD_20250903
["timestamp","ask_amount","ask_price","bid_price","bid_amount"]
[1756938721284,0.06,209.33,209.32,61.64723858]
[1756938721783,0.06,209.33,209.32,24.74723858]
[1756938721966,0.06,209.33,209.32,54.07399011]
[1756938722473,0.06,209.33,209.32,58.85136446]
[1756938722669,0.06,209.33,209.32,56.2672915]
[1756938722877,0.06,209.33,209.32,58.85136446]
[1756938723680,0.06,209.33,209.32,66.42461293]
[1756938725973,0.06,209.33,209.32,66.99789785]
[1756938729579,0.06,209.33,209.32,30.09789785]
[1756938729778,0.06,209.33,209.32,66.95789785]
[1756938731696,0.06,209.33,209.32,66.38461293]
[1756938735700,1e-08,209.33,209.32,66.95789785]
[1756938735907,1e-08,209.34,209.33,44.65706328]
[1756938736109,1e-08,209.34,209.33,47.93113624]
[1756938736489,1e-08,209.34,209.33,49.8452408]
[1756938736798,1e-08,209.34,209.33,49.1552408]
[1756938736986,1e-08,209.34,209.33,85.9952408]
[1756938737396,1e-08,209.34,209.33,86.6852408]
[1756938743014,0.69000001,209.34,209.33,46.57116784]
[1756938743193,0.69000001,209.34,209.32,30.77733721]
[1756938743400,1e-08,209.34,209.33,39.40407296]
[1756938743597,0.06000001,209.34,209.33,39.40407296]
[1756938744013,0.75000001,209.34,209.33,39.40407296]
[1756938744201,0.75000001,209.34,209.33,44.18121909]
[1756938747417,0.75000001,209.34,209.33,36.82]
[1756938748623,0.75000001,209.34,209.33,44.18121909]
[1756938749626,0.06000001,209.34,209.33,59.32439377]
[1756938750515,0.06,209.35,209.33,59.32439377]
[1756938750516,0.06,209.35,209.33,61.23877315]
[1756938750702,0.06,209.35,209.34,3.27407296]
[1756938751297,0.06,209.36,209.34,43.15399011]
[1756938751514,0.06,209.36,209.35,54.56719288]
[1756938752206,1e-08,209.37,209.36,0.28432314]
[1756938752400,1e-08,209.37,209.36,43.15399011]
[1756938752905,1e-08,209.37,209.36,47.9304517]
[1756938753315,7.60522461,209.41,209.39,39.59559401]
[1756938753517,7.60522461,209.41,209.39,82.48115634]
[1756938753819,7.60522461,209.41,209.39,90.92337522]
[1756938754006,7.60522461,209.41,209.39,98.52859983]
[1756938754207,7.60522461,209.41,209.39,97.95550656]
[1756938754737,7.60522461,209.41,209.4,13.87991715]
[1756938754911,7.60522461,209.41,209.4,32.26583113]
[1756938755725,7.60522461,209.41,209.4,32.83889703]
[1756938758332,0.06,209.43,209.42,26.0]
[1756938758630,0.06,209.43,209.42,65.44407296]
[1756938758808,0.06,209.43,209.42,29.27407296]
[1756938759010,0.06,209.43,209.42,68.04753657]
[1756938759832,0.06,209.46,209.45,26.0]
[1756938760046,0.06,209.46,209.45,65.42407296]
[1756938760244,0.06,209.46,209.45,66.11407296]
[1756938760454,0.06,209.46,209.45,72.80167116]
[1756938760733,0.06,209.46,209.45,86.68158831]
[1756938761110,1e-08,209.46,209.45,47.25751535]
[1756938761311,1e-08,209.46,209.45,86.70158831]
[1756938765241,1e-08,209.46,209.45,49.84158831]
[1756938765442,1e-08,209.46,209.45,86.70158831]
[1756938766740,1e-08,209.46,209.45,49.84158831]
[1756938766924,1e-08,209.46,209.45,86.68158831]
[1756938768026,0.06,209.48,209.46,13.87991715]
[1756938768228,0.06,209.48,209.47,53.8568645]
[1756938768427,0.06,209.48,209.47,17.6968645]
[1756938768628,0.06,209.48,209.47,19.60977906]
[1756938768842,0.06,209.48,209.47,56.42977906]
[1756938769345,0.06,209.48,209.47,24.38373237]
[1756938769540,0.77,209.48,209.47,20.56678502]
[1756938769727,0.77,209.48,209.47,59.97085798]
[1756938769927,0.77,209.48,209.47,59.68653484]
[1756938770133,0.77,209.48,209.47,59.97085798]
[1756938770333,0.77,209.48,209.47,21.23794342]
[1756938770533,0.77,209.48,209.47,58.05794342]
[1756938771133,0.06,209.48,209.47,58.05794342]
[1756938771536,0.06,209.48,209.47,65.80088643]
[1756938772147,0.06,209.48,209.47,66.46088643]
[1756938773650,0.06,209.48,209.47,67.24627856]
[1756938773848,0.06,209.48,209.47,67.90627856]
[1756938774144,0.06,209.48,209.47,67.24627856]
[1756938775345,0.06,209.48,209.47,67.90627856]
[1756938776749,0.2,209.5,209.49,39.59559401]
[1756938776952,0.2,209.53,209.51,0.28432314]
[1756938777146,0.2,209.53,209.52,58.75884733]
[1756938777448,0.2,209.53,209.52,56.6418395]
[1756938778351,0.2,209.53,209.52,61.33130459]
[1756938778551,0.2,209.53,209.52,29.28411864]
[1756938778857,0.71,209.58,209.53,0.28432314]
[1756938779056,0.71,209.58,209.53,44.56938224]
[1756938780255,0.71,209.58,209.53,18.56938224]
[1756938780553,0.06,209.56,209.55,44.6520479]
[1756938780732,0.06,209.56,209.55,85.50151299]
[1756938781545,0.06,209.56,209.55,87.41360458]
[1756938783668,0.06,209.56,209.55,46.56413949]
[1756938783961,0.77,209.56,209.55,87.41360458]
[1756938784773,0.77,209.56,209.55,50.59360458]
[1756938784941,0.77,209.56,209.55,87.41360458]
[1756938786842,0.06,209.56,209.55,87.41360458]
[1756938790244,0.06,209.56,209.55,88.07360458]
[1756938790964,0.06,209.56,209.55,166.67360458]
[1756938792876,0.06,209.58,209.57,0.28432314]
[1756938793048,0.06,209.58,209.57,80.68938224]
[1756938793375,0.2,209.61,209.59,0.28432314]
[1756938793578,0.2,209.61,209.6,40.80946509]
[1756938794069,0.2,209.61,209.6,41.52946509]
[1756938795771,0.2,209.61,209.6,46.30045745]
[1756938797261,0.2,209.61,209.6,138.7803746]
[1756938797664,0.2,209.61,209.6,143.54926027]
[1756938799373,0.2,209.61,209.6,106.76926027]
[1756938799549,0.2,209.61,209.6,143.54926027]
[1756938799749,0.06,209.64,209.63,39.87991715]
[1756938799972,0.06,209.64,209.63,80.68938224]
[1756938800172,0.06,209.64,209.63,81.40938224]
[1756938800469,0.06,209.64,209.63,86.1774537]
[1756938802859,0.06,209.64,209.63,90.94776329]
[1756938803768,0.06,209.64,209.63,90.22776329]
[1756938804287,0.76,209.64,209.63,85.43969183]
[1756938804458,0.76,209.64,209.63,85.41969183]
[1756938804664,0.76,209.64,209.63,48.67969183]
[1756938804877,0.06,209.64,209.63,90.16915692]
[1756938805171,0.06,209.64,209.63,94.93765689]
[1756938805375,0.06,209.64,209.63,90.9281918]
[1756938806581,0.06,209.64,209.63,94.95765689]
[1756938806880,0.06,209.64,209.63,90.9281918]
[1756938807257,0.06,209.64,209.63,169.5281918]
[1756938808773,0.06,209.64,209.63,90.9281918]
[1756938808977,0.06,209.64,209.63,94.95765689]
[1756938810587,0.06,209.66,209.64,13.87991715]
[1756938810790,0.06,209.66,209.65,54.64938224]
[1756938810985,0.06,209.66,209.65,60.13923675]
[1756938811276,0.06,209.66,209.65,62.05041475]
[1756938811663,0.06,209.66,209.65,61.33041475]
[1756938814386,0.06,209.66,209.65,62.05041475]
[1756938814785,0.06,209.66,209.65,99.16094966]
[1756938814983,0.76,209.66,209.65,13.59559401]
[1756938815168,0.76,209.66,209.65,54.3450591]
[1756938815365,0.76,209.66,209.65,17.90938224]
[1756938815664,0.76,209.66,209.65,54.62938224]
[1756938820771,0.76,209.66,209.65,59.39923675]
[1756938820974,0.06,209.66,209.65,59.37923675]
[1756938821177,0.76,209.66,209.65,59.37923675]
[1756938821376,0.06,209.66,209.65,59.37923675]
[1756938826305,0.72,209.66,209.65,50.57991715]
[1756938826797,0.72,209.66,209.65,55.34977166]
[1756938827000,0.72,209.66,209.65,59.37923675]
[1756938830198,0.06,209.66,209.65,59.37923675]
[1756938830597,0.72,209.66,209.65,59.37923675]
[1756938831597,0.06,209.66,209.65,59.37923675]
[1756938832887,0.06,209.66,209.65,60.06923675]
[1756938834788,0.06,209.66,209.65,59.37923675]
[1756938835476,0.06,209.66,209.65,57.92513222]
[1756938836104,0.06,209.66,209.65,58.61513222]
[1756938836579,0.06,209.66,209.65,57.92513222]
[1756938840003,0.72,209.66,209.65,57.92513222]
[1756938840185,0.72,209.66,209.65,13.87991715]
[1756938840381,0.72,209.66,209.64,0.03]
[1756938840584,0.72,209.66,209.65,36.7]
[1756938841282,0.06,209.66,209.65,53.15527771]
[1756938842106,0.06,209.66,209.65,50.57991715]
[1756938842481,0.06,209.66,209.65,55.34977166]
[1756938842881,0.06,209.66,209.65,57.92513222]
[1756938845307,0.72,209.66,209.65,55.34977166]
[1756938845804,0.06,209.66,209.65,55.34977166]
[1756938845987,0.06,209.66,209.65,56.03977166]
[1756938846187,0.06,209.66,209.65,57.92513222]
[1756938847910,0.06,209.66,209.65,58.61513222]
[1756938848084,0.06,209.66,209.65,57.92513222]
[1756938848801,0.06,209.66,209.65,58.61513222]
[1756938849004,0.06,209.66,209.65,57.92513222]
[1756938849189,0.06,209.66,209.65,65.73377899]
[1756938849498,0.06,209.66,209.65,66.42377899]
[1756938850389,0.06,209.66,209.65,65.73377899]
[1756938851405,0.06,209.66,209.65,29.03377899]
[1756938851604,0.06,209.66,209.65,63.15841843]
[1756938856911,0.72,209.66,209.65,63.15841843]
[1756938857317,0.72,209.66,209.65,7.80864677]
[1756938857511,3.29536056,209.66,209.65,36.7]
[1756938860216,0.72,209.66,209.65,36.7]
[1756938861821,3.29536056,209.66,209.65,36.7]
[1756938862912,0.72,209.66,209.65,36.7]
[1756938863130,3.29536056,209.66,209.65,36.7]
[1756938863423,8.06498757,209.66,209.65,36.7]
[1756938863920,8.06498757,209.66,209.64,36.73]
[1756938864099,3.23536056,209.65,209.64,36.73]
[1756938864697,3.23536056,209.65,209.64,0.03]
[1756938865123,17.57673302,209.65,209.64,0.03]
[1756938866221,22.34658753,209.65,209.64,0.03]
[1756938872828,19.77122697,209.65,209.64,0.03]
[1756938873127,22.34658753,209.65,209.64,0.03]
[1756938873305,5.42985451,209.65,209.64,0.03]
[1756938873510,9.91739806,209.65,209.64,0.03]
[1756938873723,9.25739806,209.65,209.64,0.03]
[1756938873925,9.91739806,209.65,209.64,0.03]
[1756938879923,7.3420375,209.65,209.64,0.03]
[1756938880126,9.91739806,209.65,209.64,0.03]
[1756938881612,0.06,209.66,209.64,0.7]
[1756938881820,2.57536056,209.65,209.64,0.7]
[1756938883040,2.57536056,209.65,209.64,0.03]
[1756938883531,8.06521507,209.65,209.64,0.03]
[1756938883723,7.34521507,209.65,209.64,0.03]
[1756938886418,7.40521507,209.65,209.64,0.03]
[1756938891335,2.63536056,209.65,209.64,0.03]
[1756938891717,7.40521507,209.65,209.64,0.03]
[1756938894350,14.11852594,209.65,209.64,0.03]
[1756938897440,15.57165718,209.65,209.64,0.03]
[1756938897841,10.80180267,209.65,209.64,0.03]
[1756938898362,15.57165718,209.65,209.64,0.03]
[1756938905253,56.28014898,209.65,209.64,0.03]
[1756938907056,52.25165718,209.65,209.64,0.03]
[1756938908554,4.0884918,209.65,209.64,0.03]
[1756938911065,34.85834631,209.65,209.64,0.03]
[1756938912243,8.85834631,209.65,209.64,0.03]
[1756938917670,9.54834631,209.65,209.64,0.03]
[1756938918271,8.85834631,209.65,209.64,0.03]
[1756938919368,9.54834631,209.65,209.64,0.03]
[1756938919673,11.55052931,209.65,209.64,0.03]
[1756938920449,41.57902111,209.65,209.64,0.03]
[1756938920650,26.0,209.62,209.61,0.03]
[1756938920952,74.40616235,209.62,209.61,0.03]
[1756938921268,77.00907692,209.62,209.61,0.03]
[1756938921465,80.58669667,209.62,209.61,0.03]
[1756938922666,85.35723383,209.62,209.61,0.03]
[1756938927873,48.43723383,209.62,209.61,0.03]
[1756938928063,85.33182431,209.62,209.61,0.03]
[1756938933379,84.64182431,209.62,209.61,0.03]
[1756938934082,85.33182431,209.62,209.61,0.03]
[1756938935977,85.33182431,209.62,209.59,0.03]
[1756938936285,4.0284918,209.6,209.59,0.03]
[1756938936479,7.60070203,209.6,209.59,0.03]
[1756938936864,44.48070203,209.6,209.59,0.73]
[1756938937184,14.28460896,209.6,209.59,0.73]
[1756938938783,51.16460896,209.6,209.59,0.73]
[1756938939569,47.59239873,209.6,209.59,0.73]
[1756938940687,5.94140637,209.6,209.59,0.73]
[1756938940881,4.0284918,209.6,209.59,0.73]
[1756938942776,35.37031071,209.62,209.59,0.73]
[1756938942981,7.45767055,209.62,209.59,0.73]
[1756938943384,7.45767055,209.62,209.59,5.50118209]
[1756938943589,7.45767055,209.62,209.6,0.68]
[1756938944392,7.45767055,209.62,209.6,5.45097716]
[1756938944686,7.45767055,209.62,209.61,0.68]
[1756938946983,11.48616235,209.62,209.59,0.71]
[1756938947191,4.0284918,209.6,209.59,0.03]
[1756938947894,30.6784918,209.6,209.59,0.03]
[1756938948887,35.44948416,209.6,209.59,0.03]
[1756938950394,34.79948416,209.6,209.59,0.03]
[1756938951072,35.44948416,209.6,209.59,0.03]
[1756938951592,34.79948416,209.6,209.59,0.03]
[1756938951795,35.44948416,209.6,209.59,0.03]
[1756938952102,34.79948416,209.6,209.59,0.03]
[1756938952800,35.44948416,209.6,209.59,0.03]
[1756938952981,34.79948416,209.6,209.59,0.03]
[1756938953471,35.44948416,209.6,209.59,0.03]
[1756938954289,37.36221578,209.6,209.59,0.03]
[1756938954494,36.71221578,209.6,209.59,0.03]
[1756938954777,34.79948416,209.6,209.59,0.03]
[1756938954978,7.45767055,209.62,209.59,0.71]
[1756938955178,4.0284918,209.6,209.59,0.03]
[1756938955894,4.0284918,209.6,209.59,0.71]
[1756938956202,4.0284918,209.6,209.59,0.03]
[1756938956503,4.0284918,209.6,209.59,0.71]
[1756938959290,8.79948416,209.6,209.59,0.03]
[1756938959491,7.99993669,209.6,209.59,0.03]
[1756938959910,11.57180691,209.6,209.59,0.03]
[1756938960505,13.48472147,209.6,209.59,0.03]
[1756938962485,13.48472147,209.6,209.58,0.03]
[1756938962685,43.03081455,209.59,209.58,0.03]
[1756938963082,43.68081455,209.59,209.58,0.03]
[1756938963311,28.57894433,209.57,209.56,0.03]
[1756938963486,69.03081455,209.57,209.56,0.03]
[1756938963890,74.45248988,209.57,209.56,0.03]
[1756938964213,73.80437773,209.57,209.56,0.03]
[1756938964507,73.80437773,209.57,209.56,0.71]
[1756938964508,7.35061966,209.57,209.56,0.71]
[1756938965094,7.35061966,209.57,209.56,0.03]
[1756938967186,7.35061966,209.57,209.56,0.71]
[1756938968900,7.35061966,209.57,209.56,0.03]
[1756938970304,11.57386039,209.57,209.56,0.03]
[1756938970902,48.43386039,209.57,209.56,0.03]
[1756938976125,50.34714095,209.57,209.56,0.03]
[1756938976330,48.43386039,209.57,209.56,0.03]
[1756938977235,62.31377754,209.57,209.56,0.03]
[1756938977528,13.73775558,209.55,209.54,0.03]
[1756938977827,56.89210221,209.55,209.54,0.03]
[1756938978130,59.50584046,209.55,209.54,0.03]
[1756938980131,64.27797121,209.55,209.54,0.03]
[1756938981609,26.0,209.52,209.51,0.03]
[1756938981934,67.99788866,209.52,209.51,0.03]
[1756938982131,68.69788866,209.52,209.51,0.03]
[1756938982426,68.03277414,209.52,209.51,0.03]
[1756938983535,72.80558819,209.52,209.51,0.03]
[1756938984234,75.38453252,209.52,209.51,0.03]
[1756938987436,72.80558819,209.52,209.51,0.03]
[1756938991628,72.10558819,209.52,209.51,0.03]
[1756938992336,35.26558819,209.52,209.51,0.03]
[1756938992528,30.77281405,209.52,209.51,0.68]
[1756938992724,33.35175838,209.52,209.51,0.68]
[1756938999243,34.05175838,209.52,209.51,0.03]
[1756939001840,36.63070271,209.52,209.51,0.03]
[1756939002245,40.19747677,209.52,209.51,0.03]
[1756939002836,42.11121501,209.52,209.51,0.03]
[1756939003525,38.54444095,209.52,209.51,0.03]
[1756939003848,42.11302413,209.52,209.51,0.03]
[1756939004149,36.95513547,209.52,209.51,0.03]
[1756939004361,39.5340798,209.52,209.51,0.03]
[1756939005941,42.11302413,209.52,209.51,0.03]
[1756939008144,38.8340798,209.52,209.51,0.03]
[1756939008652,42.08302413,209.52,209.51,0.03]
[1756939009160,39.5040798,209.52,209.51,0.03]
[1756939010247,42.08302413,209.52,209.51,0.03]
[1756939014447,39.5040798,209.52,209.51,0.03]
[1756939016138,42.08302413,209.52,209.51,0.03]
[1756939018560,39.59559401,209.49,209.48,1e-08]
[1756939018738,82.78744466,209.49,209.48,1e-08]
[1756939018934,13.87991715,209.48,209.46,0.03]
[1756939019138,42.90752751,209.47,209.46,0.03]
[1756939019350,48.35148082,209.47,209.46,0.03]
[1756939019755,50.2658602,209.47,209.46,0.03]
[1756939021248,49.5958602,209.47,209.46,0.03]
[1756939021449,51.05305279,209.47,209.46,0.03]
[1756939021650,12.37867341,209.47,209.46,0.71]
[1756939021856,45.57009023,209.47,209.46,0.71]
[1756939024868,45.57009023,209.47,209.46,0.03]
[1756939025468,45.57009023,209.47,209.46,0.71]
[1756939026859,45.57009023,209.47,209.46,0.03]
[1756939027063,15.96817204,209.52,209.46,0.03]
[1756939027064,0.06,209.53,209.47,26.0]
[1756939027367,4.08304073,209.65,209.57,13.87991715]
[1756939027368,7.51767055,209.62,209.57,13.87991715]
[1756939027570,7.51767055,209.62,209.59,4.03613692]
[1756939027948,7.51767055,209.62,209.6,8.19767055]
[1756939028165,7.51767055,209.62,209.61,0.68]
[1756939028394,7.51767055,209.62,209.61,4.71613692]
[1756939028547,7.51767055,209.62,209.61,18.59605407]
[1756939028744,7.51767055,209.62,209.61,14.55991715]
[1756939028948,7.51767055,209.62,209.61,18.59605407]
[1756939029779,7.51767055,209.62,209.61,26.9183128]
[1756939030765,7.51767055,209.62,209.61,22.88217588]
[1756939031068,7.51767055,209.62,209.61,26.9183128]
[1756939033867,7.51767055,209.62,209.61,9.00225873]
[1756939034080,7.51767055,209.62,209.61,9.48690167]
[1756939037359,7.51767055,209.62,209.61,4.71613692]
[1756939040577,7.51767055,209.62,209.61,4.03613692]
[1756939040782,7.51767055,209.62,209.6,4.03613692]
[1756939041271,7.51767055,209.62,209.61,4.73613692]
[1756939042072,7.51767055,209.62,209.61,4.03613692]
[1756939042263,7.51767055,209.62,209.61,4.73613692]
[1756939042463,0.06,209.62,209.61,4.73613692]
[1756939043183,0.06,209.62,209.61,9.50690167]
[1756939043559,0.06,209.62,209.61,5.47076475]
[1756939043761,0.06,209.62,209.61,0.7]
[1756939043983,0.06,209.62,209.61,4.73613692]
[1756939045283,0.06,209.62,209.58,4.77144765]
[1756939045461,0.06,209.62,209.6,4.73613692]
[1756939045781,45.01381726,209.62,209.6,4.73613692]
[1756939045980,45.01381726,209.62,209.61,4.73613692]
[1756939047054,45.01381726,209.62,209.61,0.7]
[1756939047284,37.24,209.62,209.61,0.7]
[1756939047588,37.24,209.62,209.6,4.76613692]
[1756939049473,0.7,209.61,209.6,0.03]
[1756939050782,8.46764064,209.61,209.6,0.03]
[1756939055189,44.88764064,209.61,209.6,0.03]
[1756939060375,45.58764064,209.61,209.6,0.03]
[1756939060587,44.88764064,209.61,209.6,0.03]
[1756939061171,45.58764064,209.61,209.6,0.03]
[1756939061684,49.62377756,209.61,209.6,0.03]
[1756939063282,45.52764064,209.61,209.6,0.03]
[1756939066487,8.46764064,209.61,209.6,0.03]
[1756939066680,44.80764064,209.61,209.6,0.03]
[1756939068600,44.80764064,209.61,209.6,3.56774178]
[1756939068892,44.80764064,209.61,209.6,0.03]
[1756939069401,44.80764064,209.61,209.6,3.58504035]
[1756939069603,44.78764064,209.61,209.6,3.58504035]
[1756939069805,49.54377756,209.61,209.6,3.58504035]
[1756939070298,45.50764064,209.61,209.6,3.58504035]
[1756939072200,8.48764064,209.61,209.6,3.58504035]
[1756939072402,7.76764064,209.61,209.6,3.58504035]
[1756939072901,44.76764064,209.61,209.6,3.58504035]
[1756939073408,7.76764064,209.61,209.6,3.58504035]
[1756939073704,44.74764064,209.61,209.6,3.58504035]
[1756939073901,44.74764064,209.61,209.6,4.30504035]
[1756939073902,7.76764064,209.61,209.6,4.30504035]
[1756939074083,7.76764064,209.61,209.6,9.07603271]
[1756939074496,44.76764064,209.61,209.6,9.07603271]
[1756939074892,44.76764064,209.61,209.6,4.30504035]
[1756939076302,44.76764064,209.61,209.6,3.58504035]
[1756939078511,7.76764064,209.61,209.6,4.30504035]
[1756939078690,44.74764064,209.61,209.6,4.30504035]
[1756939080601,7.82764064,209.61,209.6,4.30504035]
[1756939080791,44.78764064,209.61,209.6,4.30504035]
[1756939081911,44.78764064,209.61,209.6,0.75]
[1756939082110,44.78764064,209.61,209.6,5.52099236]
[1756939084017,7.82764064,209.61,209.6,5.52099236]
[1756939084189,44.78764064,209.61,209.6,5.52099236]
[1756939087014,44.78764064,209.61,209.6,8.09853469]
[1756939087015,7.82764064,209.61,209.6,8.09853469]
[1756939089807,7.82764064,209.61,209.6,21.97845184]
[1756939092127,7.82764064,209.61,209.6,18.68090951]
[1756939092305,7.82764064,209.61,209.6,8.06853469]
[1756939093829,45.46764064,209.61,209.6,0.03]
[1756939094824,53.50687088,209.61,209.6,0.03]
[1756939097015,60.85517796,209.61,209.6,0.03]
[1756939097227,56.08441321,209.61,209.6,0.03]
[1756939098225,56.10441321,209.61,209.6,0.03]
[1756939100411,56.08441321,209.61,209.6,0.03]
[1756939100729,56.08441321,209.61,209.54,8.03988394]
[1756939101032,2.57754233,209.59,209.54,8.03988394]
[1756939101326,36.94,209.58,209.55,0.69]
[1756939101529,36.94,209.57,209.55,5.46210789]
[1756939104230,16.92440156,209.6,209.55,4.77210789]
[1756939104415,36.94,209.59,209.56,0.69]
[1756939105234,36.94,209.59,209.55,7.34965022]
[1756939105414,37.64,209.59,209.55,8.03965022]
[1756939105614,37.64,209.59,209.55,5.46210789]
[1756939106436,36.94,209.59,209.55,5.46210789]
[1756939106731,37.64,209.59,209.55,5.46210789]
[1756939106931,36.92,209.58,209.55,5.46210789]
[1756939107125,36.92,209.57,209.55,5.46210789]
[1756939114246,36.92,209.57,209.55,5.49210789]
[1756939114922,36.92,209.57,209.55,0.03]
[1756939117844,36.92,209.57,209.55,5.49199784]
[1756939118046,36.86,209.56,209.55,4.80199784]
[1756939118337,14.34685923,209.6,209.55,7.37954017]
[1756939118557,14.34685923,209.6,209.58,2.57754233]
[1756939118735,36.84,209.59,209.56,14.34411532]
[1756939118936,36.84,209.59,209.55,4.80199784]
[1756939119158,36.84,209.59,209.56,14.34411533]
[1756939119356,36.84,209.59,209.57,0.69]
[1756939119870,36.84,209.59,209.58,7.34898998]
[1756939120155,36.84,209.59,209.58,8.03898998]
[1756939120858,36.84,209.59,209.58,5.46144765]
[1756939121862,7.82764064,209.61,209.58,5.46144765]
[1756939122359,36.84,209.6,209.58,5.46144765]
[1756939123664,7.82764064,209.61,209.58,5.46144765]
[1756939123961,36.84,209.59,209.58,5.46144765]
[1756939124154,7.82764064,209.61,209.58,5.46144765]
[1756939124351,7.82764064,209.61,209.58,7.34898998]
[1756939124538,7.82764064,209.61,209.6,2.57754233]
[1756939124740,7.82764064,209.61,209.6,8.05853469]
[1756939125258,7.82764064,209.61,209.6,19.98737944]
[1756939126762,7.82764064,209.61,209.6,17.40983711]
[1756939126940,7.82764064,209.61,209.6,19.98737944]
[1756939128057,7.82764064,209.61,209.6,19.27737944]
[1756939128258,7.82764064,209.61,209.6,3.28754233]
[1756939129165,7.82764064,209.61,209.6,8.05853469]
[1756939130554,7.82764064,209.61,209.6,5.48099236]
[1756939130751,7.82764064,209.61,209.59,14.34205808]
[1756939131068,7.82764064,209.61,209.59,17.62960041]
[1756939133864,7.82764064,209.61,209.59,22.4007481]
[1756939134054,7.82764064,209.61,209.6,0.71]
[1756939135044,7.82764064,209.61,209.6,8.05853469]
[1756939135363,7.82764064,209.61,209.6,22.40059277]
[1756939143469,7.82764064,209.61,209.6,23.84953135]
[1756939146279,7.82764064,209.61,209.6,19.82305044]
[1756939146477,7.82764064,209.61,209.6,23.84953135]
[1756939147072,7.82764064,209.61,209.6,15.05205808]
[1756939147279,8.54764064,209.61,209.6,14.34205808]
[1756939147866,8.54764064,209.61,209.59,8.79763334]
[1756939148066,8.54764064,209.61,209.59,23.13969142]
[1756939149381,7.82764064,209.61,209.59,23.13969142]
[1756939150288,7.82764064,209.61,209.59,14.34205808]
[1756939150456,41.54648091,209.6,209.55,0.03]
[1756939150864,4.02648091,209.58,209.55,0.03]
[1756939151065,36.8,209.57,209.55,0.03]
[1756939151280,37.52,209.57,209.55,0.03]
[1756939151455,36.8,209.57,209.55,0.03]
[1756939151659,0.72,209.56,209.55,0.03]
[1756939152280,37.49,209.57,209.55,0.03]
[1756939152466,40.82648091,209.57,209.55,0.03]
[1756939152664,0.69,209.56,209.55,0.03]
[1756939153682,0.69,209.57,209.55,0.03]
[1756939153873,4.02648091,209.59,209.55,0.73]
[1756939154079,40.82648091,209.58,209.56,0.7]
[1756939154886,36.8,209.58,209.57,0.7]
[1756939157187,36.8,209.58,209.56,8.79821027]
[1756939157480,36.8,209.58,209.55,4.05648091]
[1756939157684,37.49,209.58,209.55,0.03]
[1756939157983,36.8,209.58,209.55,0.73]
[1756939158480,36.8,209.58,209.56,0.7]
[1756939158684,7.82764064,209.61,209.57,4.72648091]
[1756939158894,44.64764064,209.61,209.59,4.02648091]
[1756939159092,44.64764064,209.61,209.59,4.72648091]
[1756939159961,44.64764064,209.61,209.59,9.4976661]
[1756939160163,44.64764064,209.61,209.6,0.7]
[1756939160684,44.64764064,209.61,209.6,4.72648091]
[1756939160887,44.64764064,209.61,209.6,4.02648091]
[1756939161268,44.64764064,209.61,209.59,4.02648091]
[1756939161475,44.62764064,209.61,209.59,4.72648091]
[1756939162470,44.62764064,209.61,209.59,4.02648091]
[1756939162672,0.69,209.6,209.58,4.77230995]
[1756939162873,0.69,209.6,209.57,4.02648091]
[1756939163591,44.62764064,209.61,209.57,8.79807996]
[1756939163771,37.55,209.61,209.58,4.02648091]
[1756939164176,37.49,209.6,209.58,4.02648091]
[1756939164493,6.57858693,209.6,209.59,4.72648091]
[1756939164688,36.86,209.61,209.59,4.72648091]
[1756939164890,36.86,209.61,209.6,4.02648091]
[1756939165402,36.86,209.61,209.59,4.02648091]
[1756939165693,36.86,209.61,209.58,9.49834773]
[1756939165871,36.86,209.61,209.58,10.19834773]
[1756939166475,36.86,209.61,209.58,10.9432997]
[1756939166786,36.86,209.61,209.59,0.7]
[1756939166974,36.86,209.61,209.58,14.26978061]
[1756939167173,36.86,209.61,209.58,8.79791379]